{"text_format":"1","workbook":"xlsx","n_sheets":7,"sheets":["初めにお読みください","入力シート","結果シート","参考 パターン別年間CO2排出量","都市類型による移動距離推定","計算","パラメーター"],"not_rendered":{"charts":1,"images":4,"macros":1,"external_links":0,"defined_names":1,"comments":0,"pivot_tables":0},"unopened":[],"bounds":{"document_bytes":16777216,"sheet_cells":100000,"rows_first":2000,"rows_last":500,"rows_between":2000,"halvings":0,"cell_chars":16384,"cell_head_chars":4096},"cells_cut":0,"cells_raw":0,"read":"whole","date_system":"1900"}

{"sheet":"初めにお読みください","index":0,"n_rows":0,"n_cols":0,"rows_kept":0,"cut":false,"hidden":false,"merged":[]}

{"sheet":"入力シート","index":1,"n_rows":21,"n_cols":7,"rows_kept":21,"cut":false,"hidden":false,"merged":[]}
[]
[null,null,"ステップ１　図1を参考に、各経路の移動手段(プルダウンメニューから選択)と距離を入力してください　＊距離が不明な場合は、「推定値の算出」ボタンを押してください"]
[null,null,"移動経路","手段","距離(km)"]
[null,null,"A：従業員自宅～オフィス",{"$f":"G5","v":"クリックしてプルダウンメニューから選択"},"クリックして数値を入力",null,"列1"]
[null,null,"B：オフィス～外出先X",{"$f":"G5","v":"クリックしてプルダウンメニューから選択"},"クリックして数値を入力",null,"クリックしてプルダウンメニューから選択"]
[null,null,"C：オフィス～外出先Y",{"$f":"G5","v":"クリックしてプルダウンメニューから選択"},"クリックして数値を入力",null,"自家用車または社用車"]
[null,null,"D：外出先X～外出先Y",{"$f":"G5","v":"クリックしてプルダウンメニューから選択"},"クリックして数値を入力",null,"鉄道"]
[null,null,null,null,null,null,"バス"]
[]
[null,null,"ステップ２　テレワーク導入後の実施日数、実施人数を入力してください"]
[null,null,"1週間当たりのテレワーク実施日数(日)","クリックして数値を入力"]
[null,null,"テレワーク実施人数(名)","クリックして数値を入力"]
[]
[]
[null,null,"ステップ３　図2を参考に、テレワーク導入前後の移動パターン（プルダウンメニューから選択）を入力し、「結果表示」ボタンを押してください"]
[null,null,"テレワーク導入前の移動パターン",{"$f":"G17","v":"クリックしてプルダウンメニューから選択"},null,null,"列1"]
[null,null,"テレワーク導入後の移動パターン",{"$f":"G17","v":"クリックしてプルダウンメニューから選択"},null,null,"クリックしてプルダウンメニューから選択"]
[null,null,null,null,null,null,"パターン１：出社後、外出先X, Yへ移動する。\n外出先X, Y間はオフィスを経由して移動する。"]
[null,null,null,null,null,null,"パターン２：出社後、外出先X, Yへ移動する。\n外出先X, Y間は直接移動する。"]
[null,null,null,null,null,null,"パターン３：出社後、外出しない。"]
[null,null,null,null,null,null,"パターン４：自宅でテレワークする。"]

{"sheet":"結果シート","index":2,"n_rows":12,"n_cols":9,"rows_kept":12,"cut":false,"hidden":false,"merged":[]}
[null,null,null,null,"パターン別GHG排出量(t)"]
[null,"テレワーク導入前の移動パターン",{"$f":"IF(入力シート!D16=\"クリックしてプルダウンメニューから選択\", \"未選択\", 入力シート!D16)","v":"未選択"},null,null,"パターン１：出社後、外出先X, Yへ移動する。\n外出先X, Y間はオフィスを経由して移動する。","パターン２：出社後、外出先X, Yへ移動する。\n外出先X, Y間は直接移動する。","パターン３：出社後、外出しない。","パターン４：自宅でテレワークする。"]
[null,"テレワーク導入後の移動パターン",{"$f":"IF(入力シート!D17=\"クリックしてプルダウンメニューから選択\", \"未選択\", 入力シート!D17)","v":"未選択"},null,"A：従業員自宅～オフィス",{"$f":"_xlfn.XLOOKUP(入力シート!D4, 計算!C2:C4, 計算!D2:D4)/1000","v":{"$error":"#N/A"}},{"$f":"_xlfn.XLOOKUP(入力シート!D4, 計算!C14:C16, 計算!D14:D16)/1000","v":{"$error":"#N/A"}},{"$f":"_xlfn.XLOOKUP(入力シート!D4, 計算!C26:C28, 計算!D26:D28)/1000","v":{"$error":"#N/A"}},{"$f":"_xlfn.XLOOKUP(入力シート!D4, 計算!C38:C40, 計算!D38:D40)/1000","v":{"$error":"#N/A"}}]
[null,null,null,null,"B：オフィス～外出先X",{"$f":"_xlfn.XLOOKUP(入力シート!D5, 計算!C5:C7, 計算!D5:D7)/1000","v":{"$error":"#N/A"}},{"$f":"_xlfn.XLOOKUP(入力シート!D5, 計算!C17:C19, 計算!D17:D19)/1000","v":{"$error":"#N/A"}},{"$f":"_xlfn.XLOOKUP(入力シート!D5, 計算!C29:C31, 計算!D29:D31)/1000","v":{"$error":"#N/A"}},{"$f":"_xlfn.XLOOKUP(入力シート!D5, 計算!C41:C43, 計算!D41:D43)/1000","v":{"$error":"#N/A"}}]
[null,"年間CO2排出量",{"$f":"\"[導入前]：\"&ROUND(_xlfn.XLOOKUP(C2, F2:I2, F7:I7), 1)&\"t　　[導入後]：\"&ROUND(_xlfn.XLOOKUP(C3, F2:I2, F7:I7), 1)&\"t\"","v":{"$error":"#N/A"}},null,"C：オフィス～外出先Y",{"$f":"_xlfn.XLOOKUP(入力シート!D6, 計算!C8:C10, 計算!D8:D10)/1000","v":{"$error":"#N/A"}},{"$f":"_xlfn.XLOOKUP(入力シート!D6, 計算!C20:C22, 計算!D20:D22)/1000","v":{"$error":"#N/A"}},{"$f":"_xlfn.XLOOKUP(入力シート!D6, 計算!C32:C34, 計算!D32:D34)/1000","v":{"$error":"#N/A"}},{"$f":"_xlfn.XLOOKUP(入力シート!D6, 計算!C44:C46, 計算!D44:D46)/1000","v":{"$error":"#N/A"}}]
[null,"年間CO2削減効果",{"$f":"ROUND((_xlfn.XLOOKUP(C2, F2:I2, F7:I7)-_xlfn.XLOOKUP(C3, F2:I2, F7:I7)), 1)&\"t\"","v":{"$error":"#N/A"}},null,"D：外出先X～外出先Y",{"$f":"_xlfn.XLOOKUP(入力シート!D7, 計算!C11:C13, 計算!D11:D13)/1000","v":{"$error":"#N/A"}},{"$f":"_xlfn.XLOOKUP(入力シート!D7, 計算!C23:C25, 計算!D23:D25)/1000","v":{"$error":"#N/A"}},{"$f":"_xlfn.XLOOKUP(入力シート!D7, 計算!C35:C37, 計算!D35:D37)/1000","v":{"$error":"#N/A"}},{"$f":"_xlfn.XLOOKUP(入力シート!D7, 計算!C47:C49, 計算!D47:D49)/1000","v":{"$error":"#N/A"}}]
[null,"年間ガソリン代削減",{"$f":"\"約\"&ROUNDDOWN((_xlfn.XLOOKUP(C2, F2:I2, F12:I12)-_xlfn.XLOOKUP(C3, F2:I2, F12:I12))/10000, 0)&\"万円\"","v":{"$error":"#N/A"}},null,"合計",{"$f":"SUM(F3:F6)","v":{"$error":"#N/A"}},{"$f":"SUM(G3:G6)","v":{"$error":"#N/A"}},{"$f":"SUM(H3:H6)","v":{"$error":"#N/A"}},{"$f":"SUM(I3:I6)","v":{"$error":"#N/A"}}]
[null,"杉の木の年間CO2吸収換算",{"$f":"ROUNDDOWN((_xlfn.XLOOKUP(C2,F2:I2,F7:I7)-_xlfn.XLOOKUP(C3,F2:I2,F7:I7))*1000/パラメーター!C7,0)&\"本分、野球場\"&ROUNDDOWN((_xlfn.XLOOKUP(C2,F2:I2,F7:I7)-_xlfn.XLOOKUP(C3,F2:I2,F7:I7))*1000/パラメーター!C7/4000,1)&\"面分\"","v":{"$error":"#N/A"}},null,"自家用車または社用車によるガソリン代",{"$f":"IF(入力シート!$D4=入力シート!$G$6, F3*1000/パラメーター!$C$9*パラメーター!$C$14, 0)","v":0},{"$f":"IF(入力シート!$D4=入力シート!$G$6, G3*1000/パラメーター!$C$9*パラメーター!$C$14, 0)","v":0},{"$f":"IF(入力シート!$D4=入力シート!$G$6, H3*1000/パラメーター!$C$9*パラメーター!$C$14, 0)","v":0},{"$f":"IF(入力シート!$D4=入力シート!$G$6, I3*1000/パラメーター!$C$9*パラメーター!$C$14, 0)","v":0}]
[null,"太陽光発電パネルによる年間発電換算",{"$f":"ROUNDDOWN((_xlfn.XLOOKUP(C2, F2:I2, F7:I7)-_xlfn.XLOOKUP(C3, F2:I2, F7:I7))*1000/(パラメーター!C5/(パラメーター!C10-パラメーター!C6)), 0)&\"面分、コンビニの屋根\"&ROUNDDOWN((_xlfn.XLOOKUP(C2, F2:I2, F7:I7)-_xlfn.XLOOKUP(C3, F2:I2, F7:I7))*1000/(パラメーター!C5/(パラメーター!C10-パラメーター!C6))/40, 1)&\"軒分\"","v":{"$error":"#N/A"}},null,"自家用車または社用車によるガソリン代",{"$f":"IF(入力シート!$D5=入力シート!$G$6, F4*1000/パラメーター!$C$9*パラメーター!$C$14, 0)","v":0},{"$f":"IF(入力シート!$D5=入力シート!$G$6, G4*1000/パラメーター!$C$9*パラメーター!$C$14, 0)","v":0},{"$f":"IF(入力シート!$D5=入力シート!$G$6, H4*1000/パラメーター!$C$9*パラメーター!$C$14, 0)","v":0},{"$f":"IF(入力シート!$D5=入力シート!$G$6, I4*1000/パラメーター!$C$9*パラメーター!$C$14, 0)","v":0}]
[null,null,"*コンビニの屋根1軒分に40面分の太陽光発電パネルが乗せられると想定しています",null,"自家用車または社用車によるガソリン代",{"$f":"IF(入力シート!$D6=入力シート!$G$6, F5*1000/パラメーター!$C$9*パラメーター!$C$14, 0)","v":0},{"$f":"IF(入力シート!$D6=入力シート!$G$6, G5*1000/パラメーター!$C$9*パラメーター!$C$14, 0)","v":0},{"$f":"IF(入力シート!$D6=入力シート!$G$6, H5*1000/パラメーター!$C$9*パラメーター!$C$14, 0)","v":0},{"$f":"IF(入力シート!$D6=入力シート!$G$6, I5*1000/パラメーター!$C$9*パラメーター!$C$14, 0)","v":0}]
[null,null,null,null,"自家用車または社用車によるガソリン代",{"$f":"IF(入力シート!$D7=入力シート!$G$6, F6*1000/パラメーター!$C$9*パラメーター!$C$14, 0)","v":0},{"$f":"IF(入力シート!$D7=入力シート!$G$6, G6*1000/パラメーター!$C$9*パラメーター!$C$14, 0)","v":0},{"$f":"IF(入力シート!$D7=入力シート!$G$6, H6*1000/パラメーター!$C$9*パラメーター!$C$14, 0)","v":0},{"$f":"IF(入力シート!$D7=入力シート!$G$6, I6*1000/パラメーター!$C$9*パラメーター!$C$14, 0)","v":0}]
[null,null,null,null,"合計",{"$f":"SUM(F8:F11)","v":0},{"$f":"SUM(G8:G11)","v":0},{"$f":"SUM(H8:H11)","v":0},{"$f":"SUM(I8:I11)","v":0}]

{"sheet":"参考 パターン別年間CO2排出量","index":3,"n_rows":0,"n_cols":0,"rows_kept":0,"cut":false,"hidden":false,"merged":[]}

{"sheet":"都市類型による移動距離推定","index":4,"n_rows":68,"n_cols":13,"rows_kept":68,"cut":false,"hidden":false,"merged":[[3,2,6,2]]}
[null,null,"オフィスの位置する都市の類型を、下の図を参考にプルダウンメニューから選択し、移動手段をプルダウンメニューから選択して下さい"]
[null,null,"＊位置する都市が下の図の調査対象都市にない場合は、中心都市して調査対象都市となっている都市が近隣にあればその周辺都市として、不明な場合は、「全国計」を選択してください",null,null,null,null,null,null,"都市","目的種類",null,"距離(km)"]
[null,null,"都市類型","移動経路","手段","距離(km)",null,null,null,"三大都市圏／中心都市","通勤","鉄道",17.473899037950332]
[null,null,{"$f":"H4","v":"クリックしてプルダウンメニューから選択"},"A：従業員自宅～オフィス",{"$f":"H17","v":"クリックしてプルダウンメニューから選択"},{"$f":"_xlfn.XLOOKUP(C4&E4, J3:J35&L3:L35, M3:M35)","v":{"$error":"#N/A"}},null,"クリックしてプルダウンメニューから選択",null,"三大都市圏／中心都市","通勤","バス",6.1487094910517319]
[null,null,null,"B：オフィス～外出先X",{"$f":"H17","v":"クリックしてプルダウンメニューから選択"},{"$f":"_xlfn.XLOOKUP(C4&E5, J36:J68&L36:L68, M36:M68)","v":{"$error":"#N/A"}},null,"三大都市圏／中心都市",null,"三大都市圏／中心都市","通勤","自家用車または社用車",13.232037066104805]
[null,null,null,"C：オフィス～外出先Y",{"$f":"H17","v":"クリックしてプルダウンメニューから選択"},{"$f":"_xlfn.XLOOKUP(C4&E6, J36:J68&L36:L68, M36:M68)","v":{"$error":"#N/A"}},null,"三大都市圏／周辺都市１",null,"三大都市圏／周辺都市１","通勤","鉄道",22.471103920769519]
[null,null,null,"D：外出先X～外出先Y",{"$f":"H17","v":"クリックしてプルダウンメニューから選択"},{"$f":"_xlfn.XLOOKUP(C4&E7, J36:J68&L36:L68, M36:M68)","v":{"$error":"#N/A"}},null,"三大都市圏／周辺都市２",null,"三大都市圏／周辺都市１","通勤","バス",2.6174879865973355]
[null,null,null,null,null,null,null,"地方中枢都市圏／中心都市",null,"三大都市圏／周辺都市１","通勤","自家用車または社用車",12.000729512069848]
[null,null,"表に距離が入力されたら、「推定値を入力」ボタンを押してください",null,null,null,null,"地方中枢都市圏／周辺都市",null,"三大都市圏／周辺都市２","通勤","鉄道",29.005282756748489]
[null,null,null,null,null,null,null,"地方中核都市圏（４０万以上）／中心都市",null,"三大都市圏／周辺都市２","通勤","バス",5.1690921212345877]
[null,null,null,null,null,null,null,"地方中核都市圏（４０万以上）／周辺都市",null,"三大都市圏／周辺都市２","通勤","自家用車または社用車",10.798271237941087]
[null,null,null,null,null,null,null,"地方中核都市圏（４０万未満）／中心都市",null,"地方中枢都市圏／中心都市","通勤","鉄道",12.516756978965097]
[null,null,null,null,null,null,null,"地方中核都市圏（４０万未満）／周辺都市",null,"地方中枢都市圏／中心都市","通勤","バス",6.7265634396030753]
[null,null,null,null,null,null,null,"地方中心都市圏",null,"地方中枢都市圏／中心都市","通勤","自家用車または社用車",9.7348543583643323]
[null,null,null,null,null,null,null,"全国計",null,"地方中枢都市圏／周辺都市","通勤","鉄道",19.273003972546537]
[null,null,null,null,null,null,null,null,null,"地方中枢都市圏／周辺都市","通勤","バス",7.4785534118438273]
[null,null,null,null,null,null,null,"クリックしてプルダウンメニューから選択",null,"地方中枢都市圏／周辺都市","通勤","自家用車または社用車",10.366969467749323]
[null,null,null,null,null,null,null,"自家用車または社用車",null,"地方中核都市圏（４０万以上）／中心都市","通勤","鉄道",25.662015605817409]
[null,null,null,null,null,null,null,"鉄道",null,"地方中核都市圏（４０万以上）／中心都市","通勤","バス",6.0285946868342286]
[null,null,null,null,null,null,null,"バス",null,"地方中核都市圏（４０万以上）／中心都市","通勤","自家用車または社用車",9.7212781633248415]
[null,null,null,null,null,null,null,null,null,"地方中核都市圏（４０万以上）／周辺都市","通勤","鉄道",35.240589625969371]
[null,null,null,null,null,null,null,null,null,"地方中核都市圏（４０万以上）／周辺都市","通勤","バス",6.6354313560730542]
[null,null,null,null,null,null,null,null,null,"地方中核都市圏（４０万以上）／周辺都市","通勤","自家用車または社用車",11.450188808973344]
[null,null,null,null,null,null,null,null,null,"地方中核都市圏（４０万未満）／中心都市","通勤","鉄道",23.07281009900754]
[null,null,null,null,null,null,null,null,null,"地方中核都市圏（４０万未満）／中心都市","通勤","バス",6.3197241291738626]
[null,null,null,null,null,null,null,null,null,"地方中核都市圏（４０万未満）／中心都市","通勤","自家用車または社用車",9.6581645737581976]
[null,null,null,null,null,null,null,null,null,"地方中核都市圏（４０万未満）／周辺都市","通勤","鉄道",17.483187378714934]
[null,null,null,null,null,null,null,null,null,"地方中核都市圏（４０万未満）／周辺都市","通勤","バス",5.0200122530475673]
[null,null,null,null,null,null,null,null,null,"地方中核都市圏（４０万未満）／周辺都市","通勤","自家用車または社用車",9.9399785304920556]
[null,null,null,null,null,null,null,null,null,"地方中心都市圏","通勤","鉄道",10.553805617863205]
[null,null,null,null,null,null,null,null,null,"地方中心都市圏","通勤","バス",2.60357811929613]
[null,null,null,null,null,null,null,null,null,"地方中心都市圏","通勤","自家用車または社用車",10.18953609907158]
[null,null,null,null,null,null,null,null,null,"全国計","通勤","鉄道",20.430489733950754]
[null,null,null,null,null,null,null,null,null,"全国計","通勤","バス",4.9074445391074315]
[null,null,null,null,null,null,null,null,null,"全国計","通勤","自家用車または社用車",11.460899719317469]
[null,null,null,null,null,null,null,null,null,"三大都市圏／中心都市","業務","鉄道",24.866010273087152]
[null,null,null,null,null,null,null,null,null,"三大都市圏／中心都市","業務","バス",2.4372091765723711]
[null,null,null,null,null,null,null,null,null,"三大都市圏／中心都市","業務","自家用車または社用車",17.724313592670093]
[null,null,null,null,null,null,null,null,null,"三大都市圏／周辺都市１","業務","鉄道",47.03756595088322]
[null,null,null,null,null,null,null,null,null,"三大都市圏／周辺都市１","業務","バス",2.9416801929767162]
[null,null,null,null,null,null,null,null,null,"三大都市圏／周辺都市１","業務","自家用車または社用車",17.339622591332073]
[null,null,null,null,null,null,null,null,null,"三大都市圏／周辺都市２","業務","鉄道",40.707952807783201]
[null,null,null,null,null,null,null,null,null,"三大都市圏／周辺都市２","業務","バス",0.31110695947755618]
[null,null,null,null,null,null,null,null,null,"三大都市圏／周辺都市２","業務","自家用車または社用車",13.907627690815813]
[null,null,null,null,null,null,null,null,null,"地方中枢都市圏／中心都市","業務","鉄道",42.517027179853038]
[null,null,null,null,null,null,null,null,null,"地方中枢都市圏／中心都市","業務","バス",2.904247649805479]
[null,null,null,null,null,null,null,null,null,"地方中枢都市圏／中心都市","業務","自家用車または社用車",18.349868454886671]
[null,null,null,null,null,null,null,null,null,"地方中枢都市圏／周辺都市","業務","鉄道",22.268434647522081]
[null,null,null,null,null,null,null,null,null,"地方中枢都市圏／周辺都市","業務","バス",8.2153413128740986]
[null,null,null,null,null,null,null,null,null,"地方中枢都市圏／周辺都市","業務","自家用車または社用車",13.483397635237168]
[null,null,null,null,null,null,null,null,null,"地方中核都市圏（４０万以上）／中心都市","業務","鉄道",47.09675179332686]
[null,null,null,null,null,null,null,null,null,"地方中核都市圏（４０万以上）／中心都市","業務","バス",4.0544288426218946]
[null,null,null,null,null,null,null,null,null,"地方中核都市圏（４０万以上）／中心都市","業務","自家用車または社用車",15.923950962952174]
[null,null,null,null,null,null,null,null,null,"地方中核都市圏（４０万以上）／周辺都市","業務","鉄道",3.9136703965595614]
[null,null,null,null,null,null,null,null,null,"地方中核都市圏（４０万以上）／周辺都市","業務","バス",0]
[null,null,null,null,null,null,null,null,null,"地方中核都市圏（４０万以上）／周辺都市","業務","自家用車または社用車",14.534978283645792]
[null,null,null,null,null,null,null,null,null,"地方中核都市圏（４０万未満）／中心都市","業務","鉄道",21.020188875392876]
[null,null,null,null,null,null,null,null,null,"地方中核都市圏（４０万未満）／中心都市","業務","バス",0.74936898604375002]
[null,null,null,null,null,null,null,null,null,"地方中核都市圏（４０万未満）／中心都市","業務","自家用車または社用車",17.12449563081525]
[null,null,null,null,null,null,null,null,null,"地方中核都市圏（４０万未満）／周辺都市","業務","鉄道",5.1314619547204883]
[null,null,null,null,null,null,null,null,null,"地方中核都市圏（４０万未満）／周辺都市","業務","バス",6.0653076246285624E-2]
[null,null,null,null,null,null,null,null,null,"地方中核都市圏（４０万未満）／周辺都市","業務","自家用車または社用車",12.893205893636878]
[null,null,null,null,null,null,null,null,null,"地方中心都市圏","業務","鉄道",48.503450466796515]
[null,null,null,null,null,null,null,null,null,"地方中心都市圏","業務","バス",0.89441132357426323]
[null,null,null,null,null,null,null,null,null,"地方中心都市圏","業務","自家用車または社用車",16.132893843299627]
[null,null,null,null,null,null,null,null,null,"全国計","業務","鉄道",31.785582438448486]
[null,null,null,null,null,null,null,null,null,"全国計","業務","バス",1.6121522575457135]
[null,null,null,null,null,null,null,null,null,"全国計","業務","自家用車または社用車",16.364557416696329]

{"sheet":"計算","index":5,"n_rows":49,"n_cols":4,"rows_kept":49,"cut":false,"hidden":true,"merged":[]}
["パターン","移動経路","手段","GHG排出量(kg-CO2eq)"]
["パターン１：出社後、外出先X, Yへ移動する。\n外出先X, Y間はオフィスを経由して移動する。","A：従業員自宅～オフィス","自家用車または社用車",{"$f":"入力シート!E4*2*パラメーター!C2*入力シート!D11/7*365*入力シート!D12","v":{"$error":"#VALUE!"}}]
["パターン１：出社後、外出先X, Yへ移動する。\n外出先X, Y間はオフィスを経由して移動する。","A：従業員自宅～オフィス","鉄道",{"$f":"入力シート!E4*2*パラメーター!C3*入力シート!D11/7*365*入力シート!D12","v":{"$error":"#VALUE!"}}]
["パターン１：出社後、外出先X, Yへ移動する。\n外出先X, Y間はオフィスを経由して移動する。","A：従業員自宅～オフィス","バス",{"$f":"入力シート!E4*2*パラメーター!C4*入力シート!D11/7*365*入力シート!D12","v":{"$error":"#VALUE!"}}]
["パターン１：出社後、外出先X, Yへ移動する。\n外出先X, Y間はオフィスを経由して移動する。","B：オフィス～外出先X","自家用車または社用車",{"$f":"入力シート!E5*2*パラメーター!C2*入力シート!D11/7*365*入力シート!D12","v":{"$error":"#VALUE!"}}]
["パターン１：出社後、外出先X, Yへ移動する。\n外出先X, Y間はオフィスを経由して移動する。","B：オフィス～外出先X","鉄道",{"$f":"入力シート!E5*2*パラメーター!C3*入力シート!D11/7*365*入力シート!D12","v":{"$error":"#VALUE!"}}]
["パターン１：出社後、外出先X, Yへ移動する。\n外出先X, Y間はオフィスを経由して移動する。","B：オフィス～外出先X","バス",{"$f":"入力シート!E5*2*パラメーター!C4*入力シート!D11/7*365*入力シート!D12","v":{"$error":"#VALUE!"}}]
["パターン１：出社後、外出先X, Yへ移動する。\n外出先X, Y間はオフィスを経由して移動する。","C：オフィス～外出先Y","自家用車または社用車",{"$f":"入力シート!E6*2*パラメーター!C2*入力シート!D11/7*365*入力シート!D12","v":{"$error":"#VALUE!"}}]
["パターン１：出社後、外出先X, Yへ移動する。\n外出先X, Y間はオフィスを経由して移動する。","C：オフィス～外出先Y","鉄道",{"$f":"入力シート!E6*2*パラメーター!C3*入力シート!D11/7*365*入力シート!D12","v":{"$error":"#VALUE!"}}]
["パターン１：出社後、外出先X, Yへ移動する。\n外出先X, Y間はオフィスを経由して移動する。","C：オフィス～外出先Y","バス",{"$f":"入力シート!E6*2*パラメーター!C4*入力シート!D11/7*365*入力シート!D12","v":{"$error":"#VALUE!"}}]
["パターン１：出社後、外出先X, Yへ移動する。\n外出先X, Y間はオフィスを経由して移動する。","D：外出先X～外出先Y","自家用車または社用車",0]
["パターン１：出社後、外出先X, Yへ移動する。\n外出先X, Y間はオフィスを経由して移動する。","D：外出先X～外出先Y","鉄道",0]
["パターン１：出社後、外出先X, Yへ移動する。\n外出先X, Y間はオフィスを経由して移動する。","D：外出先X～外出先Y","バス",0]
["パターン２：出社後、外出先X, Yへ移動する。\n外出先X, Y間は直接移動する。","A：従業員自宅～オフィス","自家用車または社用車",{"$f":"入力シート!E4*2*パラメーター!C2*入力シート!D11/7*365*入力シート!D12","v":{"$error":"#VALUE!"}}]
["パターン２：出社後、外出先X, Yへ移動する。\n外出先X, Y間は直接移動する。","A：従業員自宅～オフィス","鉄道",{"$f":"入力シート!E4*2*パラメーター!C3*入力シート!D11/7*365*入力シート!D12","v":{"$error":"#VALUE!"}}]
["パターン２：出社後、外出先X, Yへ移動する。\n外出先X, Y間は直接移動する。","A：従業員自宅～オフィス","バス",{"$f":"入力シート!E4*2*パラメーター!C4*入力シート!D11/7*365*入力シート!D12","v":{"$error":"#VALUE!"}}]
["パターン２：出社後、外出先X, Yへ移動する。\n外出先X, Y間は直接移動する。","B：オフィス～外出先X","自家用車または社用車",{"$f":"入力シート!E5*パラメーター!C2*入力シート!D11/7*365*入力シート!D12","v":{"$error":"#VALUE!"}}]
["パターン２：出社後、外出先X, Yへ移動する。\n外出先X, Y間は直接移動する。","B：オフィス～外出先X","鉄道",{"$f":"入力シート!E5*パラメーター!C3*入力シート!D11/7*365*入力シート!D12","v":{"$error":"#VALUE!"}}]
["パターン２：出社後、外出先X, Yへ移動する。\n外出先X, Y間は直接移動する。","B：オフィス～外出先X","バス",{"$f":"入力シート!E5*パラメーター!C4*入力シート!D11/7*365*入力シート!D12","v":{"$error":"#VALUE!"}}]
["パターン２：出社後、外出先X, Yへ移動する。\n外出先X, Y間は直接移動する。","C：オフィス～外出先Y","自家用車または社用車",{"$f":"入力シート!E6*パラメーター!C2*入力シート!D11/7*365*入力シート!D12","v":{"$error":"#VALUE!"}}]
["パターン２：出社後、外出先X, Yへ移動する。\n外出先X, Y間は直接移動する。","C：オフィス～外出先Y","鉄道",{"$f":"入力シート!E6*パラメーター!C3*入力シート!D11/7*365*入力シート!D12","v":{"$error":"#VALUE!"}}]
["パターン２：出社後、外出先X, Yへ移動する。\n外出先X, Y間は直接移動する。","C：オフィス～外出先Y","バス",{"$f":"入力シート!E6*パラメーター!C4*入力シート!D11/7*365*入力シート!D12","v":{"$error":"#VALUE!"}}]
["パターン２：出社後、外出先X, Yへ移動する。\n外出先X, Y間は直接移動する。","D：外出先X～外出先Y","自家用車または社用車",{"$f":"入力シート!E7*パラメーター!C2*入力シート!D11/7*365*入力シート!D12","v":{"$error":"#VALUE!"}}]
["パターン２：出社後、外出先X, Yへ移動する。\n外出先X, Y間は直接移動する。","D：外出先X～外出先Y","鉄道",{"$f":"入力シート!E7*パラメーター!C3*入力シート!D11/7*365*入力シート!D12","v":{"$error":"#VALUE!"}}]
["パターン２：出社後、外出先X, Yへ移動する。\n外出先X, Y間は直接移動する。","D：外出先X～外出先Y","バス",{"$f":"入力シート!E7*パラメーター!C4*入力シート!D11/7*365*入力シート!D12","v":{"$error":"#VALUE!"}}]
["パターン３：出社後、外出しない。","A：従業員自宅～オフィス","自家用車または社用車",{"$f":"入力シート!E4*2*パラメーター!C2*入力シート!D11/7*365*入力シート!D12","v":{"$error":"#VALUE!"}}]
["パターン３：出社後、外出しない。","A：従業員自宅～オフィス","鉄道",{"$f":"入力シート!E4*2*パラメーター!C3*入力シート!D11/7*365*入力シート!D12","v":{"$error":"#VALUE!"}}]
["パターン３：出社後、外出しない。","A：従業員自宅～オフィス","バス",{"$f":"入力シート!E4*2*パラメーター!C4*入力シート!D11/7*365*入力シート!D12","v":{"$error":"#VALUE!"}}]
["パターン３：出社後、外出しない。","B：オフィス～外出先X","自家用車または社用車",0]
["パターン３：出社後、外出しない。","B：オフィス～外出先X","鉄道",0]
["パターン３：出社後、外出しない。","B：オフィス～外出先X","バス",0]
["パターン３：出社後、外出しない。","C：オフィス～外出先Y","自家用車または社用車",0]
["パターン３：出社後、外出しない。","C：オフィス～外出先Y","鉄道",0]
["パターン３：出社後、外出しない。","C：オフィス～外出先Y","バス",0]
["パターン３：出社後、外出しない。","D：外出先X～外出先Y","自家用車または社用車",0]
["パターン３：出社後、外出しない。","D：外出先X～外出先Y","鉄道",0]
["パターン３：出社後、外出しない。","D：外出先X～外出先Y","バス",0]
["パターン４：自宅でテレワークする。","A：従業員自宅～オフィス","自家用車または社用車",0]
["パターン４：自宅でテレワークする。","A：従業員自宅～オフィス","鉄道",0]
["パターン４：自宅でテレワークする。","A：従業員自宅～オフィス","バス",0]
["パターン４：自宅でテレワークする。","B：オフィス～外出先X","自家用車または社用車",0]
["パターン４：自宅でテレワークする。","B：オフィス～外出先X","鉄道",0]
["パターン４：自宅でテレワークする。","B：オフィス～外出先X","バス",0]
["パターン４：自宅でテレワークする。","C：オフィス～外出先Y","自家用車または社用車",0]
["パターン４：自宅でテレワークする。","C：オフィス～外出先Y","鉄道",0]
["パターン４：自宅でテレワークする。","C：オフィス～外出先Y","バス",0]
["パターン４：自宅でテレワークする。","D：外出先X～外出先Y","自家用車または社用車",0]
["パターン４：自宅でテレワークする。","D：外出先X～外出先Y","鉄道",0]
["パターン４：自宅でテレワークする。","D：外出先X～外出先Y","バス",0]

{"sheet":"パラメーター","index":6,"n_rows":14,"n_cols":4,"rows_kept":14,"cut":false,"hidden":true,"merged":[]}
["項目","単位","値","出典"]
["自家用自動車の移動距離当たりCO2排出","kg-CO2/km/人",0.127,"国交省ウェブサイト「運輸部門における二酸化炭素排出量」"]
["鉄道の移動距離当たりCO2排出","kg-CO2/km/人",1.7000000000000001E-2,"国交省ウェブサイト「運輸部門における二酸化炭素排出量」"]
["バスの移動距離当たりCO2排出","kg-CO2/km/人",6.3E-2,"国交省ウェブサイト「運輸部門における二酸化炭素排出量」"]
["太陽光パネル1枚当たりの年間発電量","kWh/枚/年",500,"リコーウェブサイト「自家消費型太陽光発電システム」より、保守的に（発電量が多くなるように）設定"]
["太陽光発電使用 によるkWh当りGHG排出","kg-CO2eq/kWh",4.8000000000000001E-2,"産総研ウェブサイト「太陽光発電の特徴１」"]
["杉の木1本当たりの年間CO2吸収量","kg/本/年",8.8000000000000007,"林野庁ウェブサイト「森林の地球温暖化防止機能について」"]
["コンビニ1店舗に載せられる太陽光パネル","枚/店舗",40,"Microsoft Copilotによる推算と、web画像検索より設定"]
["ガソリンによるGHG排出","kg-CO2/L",2.29,"環境省「サプライチェーンを通じた組織の温室効果ガス排出等の算定のための排出原単位データベース（Ver.3.5）」"]
["電力使用によるGHG排出","kg-CO2eq/kWh",0.42199999999999999,"環境省「サプライチェーンを通じた組織の温室効果ガス排出等の算定のための排出原単位データベース（Ver.3.5）」"]
["鉄道の運賃当たりGHG排出","Kg-CO2/円",1.8500000000000001E-3,"環境省「サプライチェーンを通じた組織の温室効果ガス排出等の算定のための排出原単位データベース（Ver.3.5）」"]
["バスの運賃当たりGHG排出","Kg-CO2/円",4.7099999999999998E-3,"環境省「サプライチェーンを通じた組織の温室効果ガス排出等の算定のための排出原単位データベース（Ver.3.5）」"]
["都市類型・移動目的・移動手段毎の移動距離",null,null,"国交省「令和３年度　全国都市交通特性調査　基礎集計表」をもとに計算"]
["ガソリン価格","円/L",165,"資源エネルギー庁「ガソリン全国平均価格の推移」から、保守的に（低めに）設定"]